bitfinex-derivatives/quotes_ETHF0:USTF0_20250530
["timestamp","ask_amount","ask_price","bid_price","bid_amount"]
[1748577841118,5.21055,2628.5,2628.2,0.76082]
[1748577841322,5.21054,2628.5,2628.1,0.76084]
[1748577841516,5.21054,2628.5,2628.1,1.2766]
[1748577842013,3.2078,2628.5,2628.1,1.2766]
[1748577842219,0.76077,2628.4,2628.1,1.2766]
[1748577842522,3.2078,2628.5,2628.2,0.76083]
[1748577842820,3.96854,2628.5,2628.1,2.03744]
[1748577843222,0.76077,2628.4,2628.2,1.3113]
[1748577843421,3.2078,2628.5,2628.2,1.3113]
[1748577843624,0.7608,2628.4,2628.2,1.3113]
[1748577844013,0.7608,2628.3,2628.0,0.76087]
[1748577844218,0.76089,2628.0,2627.9,3.2078]
[1748577844627,0.76091,2627.9,2627.8,0.6536]
[1748577844827,1.90222,2628.0,2627.6,3.2078]
[1748577845119,3.2078,2628.1,2626.5,0.38506172]
[1748577845120,0.76105,2627.5,2627.2,0.76111]
[1748577845516,1.2272,2627.4,2627.2,0.76111]
[1748577845714,0.76101,2627.6,2627.3,0.76109]
[1748577846222,0.76104,2627.5,2627.2,0.76109]
[1748577846428,3.2078,2627.8,2627.2,1.9028]
[1748577846622,3.2078,2627.8,2627.6,0.761]
[1748577846820,4.5004,2627.8,2627.6,0.761]
[1748577847020,3.2078,2627.8,2627.7,0.76097]
[1748577847327,3.2078,2627.8,2627.4,0.621]
[1748577847528,1.2926,2627.7,2627.5,0.76102]
[1748577847818,1.2926,2627.7,2627.5,0.76101]
[1748577848426,3.2078,2627.8,2627.7,0.76097]
[1748577849628,3.2078,2627.8,2627.6,0.76098]
[1748577849821,2.00432,2627.9,2627.6,0.76098]
[1748577850325,0.76095,2627.8,2627.5,2.67332]
[1748577850629,2.00433,2627.9,2627.6,0.761]
[1748577850825,0.1902,2627.8,2627.6,0.761]
[1748577851436,0.1902,2627.8,2627.7,0.76097]
[1748577852126,0.1902,2627.8,2627.6,0.76099]
[1748577852723,0.1902,2627.8,2627.7,0.76097]
[1748577854428,0.1902,2627.8,2627.7,3.96877]
[1748577854833,0.1902,2627.8,2627.7,8.96877]
[1748577855627,0.00570603,2628.1,2628.0,0.76088]
[1748577855832,0.00570603,2628.1,2628.0,3.96868]
[1748577856727,0.00570603,2628.1,2628.0,5.30298]
[1748577861934,0.00570603,2628.1,2628.0,5.93068]
[1748577863834,0.00570603,2628.1,2627.9,0.6089]
[1748577864035,0.76656603,2628.1,2627.9,0.76089]
[1748577864235,0.6186,2628.0,2627.7,3.2078]
[1748577864435,2.60269,2628.0,2627.8,0.76094]
[1748577864631,1.8418,2628.0,2627.8,0.76094]
[1748577864836,1.2232,2627.9,2627.8,0.76094]
[1748577865532,1.98413,2627.9,2627.5,0.6151]
[1748577865731,1.866,2627.9,2627.5,0.6151]
[1748577866035,0.76104,2627.5,2627.3,3.2078]
[1748577866337,1.2232,2627.4,2627.2,0.76111]
[1748577866637,1.8418,2627.4,2627.2,0.76111]
[1748577867232,1.8418,2627.4,2626.7,4.4327]
[1748577867532,0.6428,2627.3,2627.0,0.76117]
[1748577867739,1.3426,2627.2,2627.0,0.76117]
[1748577868030,1.3426,2627.2,2626.3,1.90339]
[1748577868031,1.3426,2627.2,2626.5,0.76131]
[1748577868232,3.2078,2626.6,2625.8,1.2701]
[1748577868430,0.19600603,2626.5,2626.4,0.76135]
[1748577869136,0.19600603,2626.5,2626.4,2.72055]
[1748577869440,0.19600603,2626.5,2626.4,0.76135]
[1748577871140,0.19600603,2626.5,2626.4,1.97605]
[1748577871735,0.19600603,2626.5,2626.4,2.58955]
[1748577872336,0.19600603,2626.5,2626.4,1.37485]
[1748577872536,0.19600603,2626.5,2626.4,0.76135]
[1748577873334,0.19600603,2626.5,2626.4,1.98485]
[1748577875437,0.19600603,2626.5,2626.4,2.05478857]
[1748577878137,0.76107,2627.4,2626.5,1.9033]
[1748577878339,1.2235,2627.0,2626.7,3.2078]
[1748577878740,1.2235,2627.0,2626.9,0.7612]
[1748577881839,1.83,2627.0,2626.9,0.7612]
[1748577883746,10.0378,2627.0,2626.7,0.00570603]
[1748577884245,0.76123,2626.8,2626.7,0.00570603]
[1748577884842,5.76123,2626.8,2626.7,0.00570603]
[1748577885045,5.0,2626.8,2626.7,0.76696603]
[1748577885445,6.3288,2626.8,2626.7,0.76696603]
[1748577886940,7.09003,2626.8,2626.7,0.00570603]
[1748577887144,6.3288,2626.8,2626.0,3.2078]
[1748577887345,3.2078,2626.4,2626.3,0.76138]
[1748577888242,1.2819,2626.5,2626.4,0.76135]
[1748577888443,1.2819,2626.5,2626.4,0.83128857]
[1748577888646,3.2078,2626.8,2626.7,0.76126]
[1748577889244,0.6065,2627.0,2626.9,0.7612]
[1748577889441,0.6065,2627.0,2626.5,3.8442]
[1748577889647,1.36769,2627.0,2626.8,0.76122]
[1748577890045,2.0431,2626.9,2626.8,0.76122]
[1748577890243,1.2819,2626.9,2626.8,0.76122]
[1748577895851,3.8142,2627.1,2626.9,0.76118]
[1748577896052,3.8142,2627.1,2627.0,0.76117]
[1748577896258,6.89249898,2627.1,2626.9,0.76119]
[1748577896453,1.07534898,2627.0,2626.9,0.76119]
[1748577897964,2.34444898,2627.0,2626.9,0.76119]
[1748577899258,1.2691,2627.0,2626.9,0.76119]
[1748577899654,2.0303,2627.0,2626.8,0.76121]
[1748577899858,1.2691,2627.0,2626.9,0.7612]
[1748577900056,2.34553914,2627.0,2626.9,0.7612]
[1748577900359,1.2691,2627.0,2626.9,0.7612]
[1748577901456,0.00570603,2627.2,2626.9,3.2078]
[1748577901659,0.00570603,2627.2,2627.1,0.76115]
[1748577901858,6.03e-06,2627.2,2627.1,0.76115]
[1748577902063,6.03e-06,2627.2,2627.1,7.05705]
[1748577905762,6.03e-06,2627.2,2627.1,7.12698857]
[1748577906659,6.03e-06,2627.2,2627.1,7.05705]
[1748577907768,6.03e-06,2627.2,2627.1,7.12698857]
[1748577908771,6.03e-06,2627.2,2627.1,7.05705]
[1748577909466,6.03e-06,2627.2,2627.1,2.05705]
[1748577909971,6.03e-06,2627.2,2627.0,0.76117]
[1748577910166,2.10422603,2627.2,2626.9,3.97469603]
[1748577910370,1.34310603,2627.2,2627.0,0.76117]
[1748577910566,1.34310603,2627.2,2626.9,0.00570603]
[1748577910774,1.34310603,2627.2,2627.0,0.76116]
[1748577911275,2.10423603,2627.2,2626.9,0.00570603]
[1748577912265,0.76118,2627.0,2626.9,0.00570603]
[1748577912470,3.96898,2627.0,2626.9,0.00570603]
[1748577912769,8.96898,2627.0,2626.9,0.00570603]
[1748577913375,3.96898,2627.0,2626.9,0.00570603]
[1748577914375,8.96898,2627.0,2626.9,0.00570603]
[1748577915076,10.92008,2627.0,2626.9,0.00570603]
[1748577917368,5.92008,2627.0,2626.9,0.00570603]
[1748577918077,5.1589,2627.0,2626.9,0.76690603]
[1748577918474,5.92008,2627.0,2626.9,0.00570603]
[1748577918667,5.92008,2627.0,2626.9,0.76690603]
[1748577918668,1.9511,2627.0,2626.9,0.76690603]
[1748577919274,6.03e-06,2627.2,2627.1,0.76115]
[1748577927887,6.03e-06,2627.2,2627.1,1.39415]
[1748577932280,6.03e-06,2627.2,2626.9,0.62320603]
[1748577932281,6.03e-06,2627.2,2626.9,0.00570603]
[1748577932476,0.76117,2627.0,2626.9,0.00570603]
[1748577932681,3.96897,2627.0,2626.9,0.00570603]
[1748577933182,5.19327,2627.0,2626.9,0.00570603]
[1748577933381,11.26369829,2627.0,2626.9,0.00570603]
[1748577933586,10.19327,2627.0,2626.9,0.00570603]
[1748577933880,11.26333494,2627.0,2626.9,0.00570603]
[1748577936083,11.26333494,2627.0,2626.9,0.0756446]
[1748577937584,6.26333494,2627.0,2626.9,0.0756446]
[1748577940288,6.26454869,2627.0,2626.9,0.00570603]
[1748577941191,6.26454869,2627.0,2626.9,0.0756446]
[1748577941696,6.26439726,2627.0,2626.9,0.0756446]
[1748577944289,6.26439726,2627.0,2626.9,0.00570603]
[1748577944890,1.83229726,2627.0,2626.9,0.76690603]
[1748577945085,0.76117,2627.0,2626.9,0.76690603]
[1748577945287,6.03e-06,2627.2,2626.9,0.0756446]
[1748577945487,0.76113603,2627.2,2627.1,0.76115]
[1748577945689,6.03e-06,2627.2,2627.1,0.76115]
[1748577945889,6.03e-06,2627.2,2627.1,1.39305]
[1748577947095,6.03e-06,2627.2,2627.1,4.60085]
[1748577948786,6.03e-06,2627.2,2627.1,9.60085]
[1748577949493,6.03e-06,2627.2,2627.1,4.60085]
[1748577949799,6.03e-06,2627.2,2627.1,9.60085]
[1748577950496,6.03e-06,2627.2,2627.1,4.60085]
[1748577950699,6.03e-06,2627.2,2627.1,9.60085]
[1748577958801,6.03e-06,2627.2,2627.1,13.50185]
[1748577961900,6.03e-06,2627.2,2627.1,9.60085]
[1748577962105,6.03e-06,2627.2,2627.1,13.50085]
[1748577962308,6.03e-06,2627.2,2627.1,9.60085]
[1748577962497,0.76112603,2627.2,2627.0,4.5231]
[1748577962796,0.76117,2627.0,2626.9,0.00570603]
[1748577962999,5.76117,2627.0,2626.9,0.00570603]
[1748577963403,8.16352119,2627.0,2626.9,0.00570603]
[1748577963597,0.7613,2626.6,2626.1,38.381]
[1748577963801,1.3324,2626.5,2626.3,0.76135]
[1748577964098,1.3324,2626.5,2626.4,0.76135]
[1748577965606,3.2078,2626.7,2626.6,0.76129]
[1748577967103,2.09473,2626.8,2626.6,0.76129]
[1748577967406,1.3335,2626.8,2626.6,0.76127]
[1748577968506,1.3335,2626.8,2626.3,4.52873857]
[1748577968807,1.3335,2626.8,2626.3,3.27773857]
[1748577969106,0.7613,2626.6,2626.4,4.61434]
[1748577969400,1.2571,2626.5,2626.4,4.61434]
[1748577969597,0.76127,2626.7,2626.5,0.76131]
[1748577969799,1.2571,2626.6,2626.5,0.76131]
[1748577970107,1.2571,2626.6,2626.4,3.853]
[1748577970108,2.01839,2626.6,2626.4,4.61433]
[1748577970303,2.01839,2626.6,2626.3,3.27773857]
[1748577970602,0.76133,2626.5,2626.3,3.27773857]
[1748577970809,1.277,2626.4,2626.3,4.03910857]
[1748577971003,1.277,2626.4,2626.3,0.83130857]
[1748577973401,2.03835,2626.4,2626.3,0.06993857]
[1748577973604,0.76144,2626.1,2625.9,3.96927]
[1748577973803,1.2298,2626.0,2625.9,3.96927]
[1748577974003,4.4376,2626.0,2625.9,0.76147]
[1748577974206,1.2298,2626.0,2625.9,0.76147]
[1748577974910,1.2298,2626.0,2625.8,0.76152]
[1748577975107,1.90382,2625.8,2625.1,3.853]
[1748577975407,3.2078,2625.2,2624.5,3.2078]
[1748577975609,0.76178,2625.0,2624.6,0.76185]
[1748577975802,1.2298,2624.9,2624.3,3.854]
[1748577976102,1.2298,2624.9,2624.8,0.76181]
[1748577976411,1.2699,2625.1,2625.0,0.76175]
[1748577977096,4.4254,2625.5,2625.2,0.76169]
[1748577977301,0.76168,2625.3,2625.0,3.854]
[1748577977500,1.2176,2625.2,2625.0,3.854]
[1748577977706,3.2078,2625.5,2625.4,0.76164]
[1748577977902,3.2078,2625.5,2625.4,4.61564]
[1748577978098,0.00570603,2625.7,2625.6,0.76158]
[1748577978296,0.00570603,2625.7,2625.6,3.96938]
[1748577979104,0.00570603,2625.7,2625.6,8.96938]
[1748577979404,1.2738,2626.4,2626.3,0.76138]
[1748577979609,1.2176,2626.3,2625.6,3.2078]
[1748577979800,0.76155,2625.7,2625.6,0.06993857]
[1748577980004,0.76177,2625.0,2624.5,3.2078]
[1748577980214,3.2078,2625.1,2624.5,3.2078]
[1748577980514,1.2673,2624.9,2624.7,0.76183]
[1748577980711,1.2673,2624.9,2624.6,0.76185]
[1748577981112,1.2673,2624.9,2624.5,3.21350603]
[1748577981310,1.2673,2624.9,2624.6,3.854]
[1748577981714,1.2673,2624.9,2624.6,4.61587]
[1748577981905,1.2673,2624.9,2624.6,3.854]
[1748577982213,1.2673,2624.9,2624.6,4.61585]
[1748577982409,1.2673,2624.9,2624.7,0.76183]
[1748577983108,1.2673,2624.9,2624.7,4.61683]
[1748577983507,1.2673,2624.9,2624.8,0.76181]
[1748577984205,1.2673,2624.9,2624.7,4.61682]
[1748577984409,1.2673,2624.9,2624.8,3.855]
[1748577984800,1.2673,2624.9,2624.6,0.76185]
[1748577985009,1.2673,2624.9,2624.7,3.855]
[1748577985403,1.2673,2624.9,2624.7,4.61683]
[1748577985609,1.2673,2624.9,2624.7,4.61681]
[1748577986022,1.2673,2624.9,2624.5,3.21350603]
[1748577986311,1.2673,2624.9,2624.7,0.76183]
[1748577986612,1.2673,2624.9,2624.8,0.76181]
[1748577987509,1.3013,2625.0,2624.9,0.76178]
[1748577987510,0.6595,2625.0,2624.9,0.76178]
[1748577987910,0.6595,2625.0,2624.8,0.76179]
[1748577988307,2.74766,2625.0,2624.8,0.76179]
[1748577988507,1.9859,2625.0,2624.8,0.76179]
[1748577989205,1.9859,2625.0,2624.9,0.0106161]
[1748577989415,2.74767,2625.0,2624.9,0.0106161]
[1748577990516,3.21350603,2625.1,2624.9,0.0106161]
[1748577990713,0.00570603,2625.1,2625.0,0.76175]
[1748577991019,0.00570603,2625.1,2625.0,2.01765]
[1748577998019,3.2078,2625.5,2625.4,0.76164]
[1748577998223,3.2078,2625.5,2625.4,4.68064]
[1748577999420,0.19610603,2625.7,2625.6,0.76158]
[1748578000721,3.2078,2626.7,2625.6,5.3045929]
[1748578000921,1.07107007,2626.6,2626.0,3.2078]
[1748578001121,3.96907,2626.7,2626.4,0.76133]
[1748578001429,2.01118,2626.7,2626.3,0.76136]
[1748578001715,1.2499,2626.7,2626.2,0.65940603]
[1748578002017,1.2499,2626.7,2626.3,4.4205]
[1748578002217,0.00570603,2626.8,2626.3,1.2127]
[1748578002725,0.76128,2626.7,2626.4,3.919]
[1748578002924,1.2499,2626.6,2626.4,3.919]
[1748578003230,0.76132,2626.5,2626.4,3.919]
[1748578003719,6.2499,2626.5,2626.2,0.00570603]
[1748578003925,3.96918,2626.3,2626.2,0.00570603]
[1748578004125,5.03963418,2626.3,2626.2,0.00570603]
[1748578004420,11.36273418,2626.3,2626.2,0.00570603]
[1748578006019,11.36278082,2626.3,2626.2,0.00570603]
[1748578010120,10.29228,2626.3,2626.2,0.00570603]
[1748578010320,11.36238154,2626.3,2626.2,0.00570603]
[1748578011529,8.15458154,2626.3,2626.2,0.00570603]
[1748578011724,11.36238154,2626.3,2626.2,0.00570603]
[1748578012124,11.36238154,2626.3,2626.2,6.03e-06]
[1748578013430,11.36263247,2626.3,2626.2,6.03e-06]
[1748578013625,0.76152,2625.8,2625.7,3.918]
[1748578013927,0.76164,2625.4,2625.3,42.216]
[1748578014130,0.76164,2625.4,2625.3,46.134]
[1748578014820,0.76154,2625.8,2625.3,46.134]
[1748578015017,3.2078,2625.9,2625.8,0.76152]
[1748578015216,3.2078,2625.9,2625.7,3.918]
[1748578015429,0.76152,2625.8,2625.7,3.918]
[1748578017129,2.08232,2625.8,2625.7,3.918]
[1748578017423,0.76164,2625.4,2625.3,42.216]
[1748578017730,0.76164,2625.4,2625.3,46.134]
[1748578017931,0.76164,2625.4,2625.3,7.731]
[1748578018130,0.76164,2625.4,2625.3,3.918]
[1748578019730,0.76164,2625.4,2625.3,4.67967]
[1748578020229,3.2078,2625.6,2625.5,0.76161]
[1748578020428,3.96938,2625.6,2625.4,0.76162]
[1748578020830,0.76161,2625.5,2625.4,3.919]
[1748578021225,3.9694,2625.6,2625.4,4.68063]
[1748578021733,0.7616,2625.6,2625.4,4.68063]
[1748578022032,0.76156,2625.7,2625.4,3.919]
[1748578022240,0.76158,2625.6,2625.5,1.8852]
[1748578022424,0.76158,2625.6,2625.5,0.6531]
[1748578022624,0.76157,2625.7,2625.5,0.6531]
[1748578023136,0.76158,2625.6,2625.5,0.6531]
[1748578025133,0.76157,2625.7,2625.5,1.41471]
[1748578025333,0.76157,2625.7,2625.5,2.73971]
[1748578025530,3.96931,2625.9,2625.6,0.76155]
[1748578025836,3.9693,2625.9,2625.7,0.76153]
[1748578026033,3.9693,2625.9,2625.6,0.76156]
[1748578026227,3.96931,2625.9,2625.7,2.08655]
[1748578026533,3.96931,2625.9,2625.7,2.08653]
[1748578026833,3.96931,2625.9,2625.8,1.325]
[1748578027227,3.2078,2625.9,2625.5,0.6531]
[1748578027428,0.76158,2625.6,2625.5,0.6531]
[1748578028030,0.76164,2625.4,2625.3,5.205]
[1748578028231,0.76164,2625.4,2625.3,3.88]
[1748578028734,0.76164,2625.4,2625.3,5.1797]
[1748578029430,0.76164,2625.4,2625.3,3.88]
[1748578030432,0.76161,2625.5,2625.3,5.94135]
[1748578031025,1.9624,2625.8,2625.3,5.94135]
[1748578031026,1.9624,2625.8,2625.3,5.1797]
[1748578031230,1.07195878,2625.7,2625.6,0.76156]
[1748578031426,0.76159,2625.6,2625.4,0.76163]
[1748578031629,0.76159,2625.6,2625.5,1.2619]
[1748578031923,3.2078,2625.9,2625.5,3.88]
[1748578032123,0.76158,2625.6,2625.5,3.88]
[1748578032529,1.3315,2625.8,2625.4,3.881]
[1748578032735,0.76164,2625.4,2625.3,1.2619]
[1748578032924,0.76164,2625.4,2625.3,5.1429]
[1748578034233,1.83526414,2625.4,2625.3,5.1429]
[1748578036437,1.83526414,2625.4,2625.3,1.2619]
[1748578036634,0.76169,2625.2,2625.1,0.00570603]
[1748578036934,1.83531414,2625.2,2625.1,0.00570603]
[1748578037331,3.09881414,2625.2,2625.1,0.00570603]
[1748578037737,2.02519,2625.2,2625.1,0.00570603]
[1748578038037,3.10012894,2625.2,2625.1,0.00570603]
[1748578038535,8.10012894,2625.2,2625.1,0.00570603]
[1748578038841,11.21943894,2625.2,2623.7,9.025]
[1748578039140,3.2078,2624.3,2623.7,5.8172]
[1748578039336,0.76199,2624.2,2623.9,0.76205]
[1748578039535,3.2078,2624.3,2624.0,2.09254]
[1748578039735,3.2078,2624.3,2624.0,2.09252]
[1748578040239,3.96975,2624.3,2624.0,1.3305]
[1748578040540,3.96976,2624.3,2624.0,1.3305]
[1748578041135,0.76198,2624.2,2624.0,1.3305]
[1748578041537,3.2078,2624.3,2624.0,1.3305]
[1748578041834,0.76194,2624.4,2624.1,3.881]
[1748578042027,1.2635,2624.7,2624.2,1.3276]
[1748578042228,0.76193,2624.4,2624.2,1.3276]
[1748578042434,3.2078,2624.5,2624.2,1.3276]
[1748578042635,1.2635,2624.7,2624.3,0.6075]
[1748578042830,1.07150364,2624.6,2624.4,1.3276]
[1748578043036,4.5198,2624.9,2624.6,0.76186]
[1748578043229,1.83332701,2624.8,2624.7,1.3276]
[1748578043434,0.76186,2624.6,2624.5,3.881]
[1748578043633,0.76185,2624.7,2624.5,3.881]
[1748578043843,0.76185,2624.7,2624.6,1.2849]
[1748578044037,0.76182,2624.8,2624.6,1.2849]
[1748578044340,4.4459,2624.9,2624.5,3.881]
[1748578044535,0.76186,2624.6,2624.5,3.881]
[1748578044734,1.99995,2624.7,2624.5,3.881]
[1748578045133,0.76186,2624.6,2624.5,3.881]
[1748578045341,1.99994,2624.7,2624.5,5.1659]
[1748578045541,1.2381,2624.7,2624.5,5.1659]
[1748578045742,0.76182,2624.8,2624.5,5.92778]
[1748578046138,0.76184,2624.7,2624.5,5.92778]
[1748578046339,3.2078,2624.9,2624.5,5.1659]
[1748578046537,3.2078,2624.9,2624.7,0.76182]
[1748578046844,3.2078,2624.9,2624.1,3.2078]
[1748578047033,3.77752,2624.8,2624.0,1.8955]
[1748578047238,0.76204,2624.0,2623.9,0.00570603]
[1748578047539,0.76204,2624.1,2623.9,0.00570603]
[1748578047841,0.762,2624.2,2623.9,0.76775603]
[1748578048043,0.76199,2624.2,2624.0,0.6344]
[1748578048244,0.76201,2624.1,2624.0,1.8983]
[1748578048438,0.76201,2624.1,2624.0,0.6344]
[1748578049238,1.2309,2624.2,2624.0,0.6344]
[1748578049438,1.2309,2624.2,2624.0,1.3016]
[1748578049644,1.9929,2624.2,2624.0,0.6344]
[1748578050038,0.76199,2624.2,2624.0,0.6344]
[1748578050341,0.76199,2624.2,2624.0,1.9653]
[1748578050540,1.2946,2624.4,2624.0,1.9653]
[1748578050737,1.2946,2624.4,2624.0,2.72732]
[1748578051046,0.76195,2624.3,2624.0,2.72732]
[1748578051342,1.2946,2624.4,2624.0,1.9653]
[1748578051548,0.76198,2624.2,2624.0,1.9653]
[1748578051745,0.76198,2624.2,2624.0,2.72734]
[1748578052247,0.76197,2624.3,2624.0,2.72734]
[1748578052637,1.2946,2624.4,2624.0,2.72734]
[1748578052845,0.76195,2624.3,2624.0,2.72734]
[1748578053247,0.76198,2624.2,2624.0,0.6344]
[1748578053547,0.76196,2624.3,2624.0,1.39644]
[1748578053746,0.76198,2624.2,2624.0,2.65404]
[1748578054049,0.76199,2624.2,2624.0,1.892]
[1748578054348,0.76199,2624.2,2624.0,2.65404]
[1748578054847,0.76197,2624.3,2624.0,2.65404]
[1748578055147,0.76195,2624.3,2624.0,2.65404]
[1748578055453,1.2946,2624.4,2624.0,2.65404]
[1748578055949,0.76199,2624.2,2624.0,2.65404]
[1748578056145,0.76201,2624.1,2624.0,1.892]
[1748578056346,0.76201,2624.1,2624.0,0.6344]
[1748578056543,0.762,2624.2,2624.0,1.39644]
[1748578057048,0.76204,2624.0,2623.9,3.88770603]
[1748578057749,1.98154,2624.0,2623.9,3.88770603]
[1748578059652,0.76204,2624.0,2623.9,3.88770603]
[1748578060153,2.03384,2624.0,2623.9,3.88770603]
[1748578060945,0.76227,2623.2,2623.1,3.2078]
[1748578061146,0.1906,2623.2,2623.1,0.7623]
[1748578061340,0.1906,2623.2,2623.1,5.3049]
[1748578061541,0.1906,2623.2,2623.1,10.3049]
[1748578062257,0.1906,2623.2,2623.1,12.8541]
[1748578062447,0.1906,2623.2,2623.1,9.1814]
[1748578062844,0.1906,2623.2,2623.1,14.1814]
[1748578072156,0.1906,2623.2,2623.1,10.2974]
[1748578072364,0.1906,2623.2,2623.1,14.1824]
[1748578077273,1.221,2623.8,2623.1,13.4201]
[1748578077461,1.221,2623.8,2623.7,0.76213]
[1748578077668,1.221,2623.8,2623.7,4.64713]
[1748578080875,1.221,2623.8,2623.7,3.885]
[1748578081171,1.221,2623.8,2623.7,4.64713]
[1748578083771,1.9831,2623.8,2623.7,3.885]
[1748578084075,1.221,2623.8,2623.7,4.64713]
[1748578086976,3.05830695,2623.8,2623.7,3.885]
[1748578087975,0.76213,2623.7,2623.5,0.76788701]
[1748578088176,2.72233,2623.7,2623.6,0.76216]
[1748578088475,2.72233,2623.7,2623.5,0.00571701]
[1748578088476,0.76216,2623.6,2623.5,0.00571701]
[1748578088673,3.1412166,2623.6,2623.5,0.00571701]
[1748578089177,0.76234,2623.0,2622.8,3.2078]
[1748578089377,2.01357,2622.9,2622.7,3.851]
[1748578089583,0.6561,2622.8,2622.7,0.76242]
[1748578089871,3.2078,2623.4,2622.7,3.851]
[1748578090071,0.6203,2623.3,2623.2,0.76227]
[1748578090271,2.63375,2623.3,2623.1,4.61329]
[1748578090978,2.63375,2623.3,2623.1,4.6133]
[1748578091176,0.76227,2623.2,2623.1,3.851]
[1748578091374,0.76231,2623.1,2622.9,0.76234]
[1748578091568,1.2512,2623.0,2622.9,0.76234]
[1748578091768,0.6156,2623.2,2623.1,0.7623]
[1748578092180,1.8715,2623.3,2623.1,3.851]
[1748578092480,1.8715,2623.3,2623.2,0.76227]
[1748578092675,3.2078,2623.4,2623.3,0.76224]
[1748578093569,2.73064,2623.7,2623.4,0.76219]
[1748578093773,1.3307,2623.6,2623.5,3.851]
[1748578094079,1.3307,2623.6,2623.5,4.61318]
[1748578094575,2.09286,2623.6,2623.4,0.7622]
[1748578094775,2.09286,2623.6,2623.5,3.851]
[1748578095079,1.39995,2623.7,2623.5,3.851]
[1748578095676,1.39995,2623.7,2623.5,4.61317]
[1748578096380,1.39995,2623.7,2623.5,3.851]
[1748578096579,0.6378,2623.7,2623.5,3.851]
[1748578096778,1.39993,2623.7,2623.5,4.61317]
[1748578096981,0.6378,2623.7,2623.6,0.76216]
[1748578097878,1.39993,2623.7,2623.5,4.61316]
[1748578098084,0.6378,2623.7,2623.6,0.76216]
[1748578098276,0.6378,2623.7,2623.0,3.8507]
[1748578098478,0.76217,2623.6,2623.1,3.851]
[1748578098773,1.39994,2623.7,2623.5,0.76218]
[1748578098983,0.6378,2623.7,2623.2,1.90569]
[1748578099182,0.6378,2623.7,2623.6,0.76216]
[1748578100184,1.39993,2623.7,2623.6,0.76216]
[1748578100575,1.39993,2623.7,2623.5,3.852]
[1748578100576,4.91963008,2623.7,2623.4,0.7622]
[1748578100777,0.76218,2623.5,2623.4,3.852]
[1748578100979,1.83616089,2623.5,2623.4,3.852]
[1748578101280,1.83616089,2623.5,2623.4,4.61421]
[1748578101478,6.07398089,2623.5,2622.7,3.852]
[1748578101786,0.76231,2623.1,2623.0,0.76233]
[1748578101985,1.07398089,2623.1,2623.0,0.76233]
[1748578102684,1.07306612,2623.1,2623.0,0.76233]
[1748578103385,0.76233,2623.0,2622.9,0.76234]
[1748578103579,1.07306612,2623.0,2622.9,0.76234]
[1748578104385,1.83539612,2623.0,2622.8,4.61437]
[1748578104580,0.76233,2623.0,2622.9,0.76236]
[1748578104775,1.83481792,2623.0,2622.9,0.76236]
[1748578104989,1.83481792,2623.0,2622.8,3.852]
[1748578105284,0.76233,2623.0,2622.8,4.61437]
[1748578105680,0.76236,2622.9,2622.8,4.61437]
[1748578105888,0.76233,2623.0,2622.9,0.76236]
[1748578106086,1.83479365,2623.0,2622.8,4.61437]
[1748578106287,0.76233,2623.0,2622.8,4.61437]
[1748578106585,0.76234,2623.0,2622.8,4.61437]
[1748578106895,0.76236,2622.9,2622.8,3.852]
[1748578107189,0.76236,2622.9,2622.8,4.61439]
[1748578107379,0.76236,2622.9,2622.8,3.852]
[1748578107787,0.8409,2623.2,2623.1,0.7623]
[1748578107788,0.1906,2623.2,2623.1,0.7623]
[1748578107985,2.0250234,2623.2,2623.1,0.7623]
[1748578108184,1.2627534,2623.2,2623.1,0.7623]
[1748578108384,0.1906,2623.2,2623.1,0.7623]
[1748578108586,0.1906,2623.2,2623.0,2.68871]
[1748578108884,0.95289,2623.2,2623.0,2.68871]
[1748578109086,0.95289,2623.2,2623.1,0.7623]
[1748578109487,0.1906,2623.2,2623.1,0.7623]
[1748578109880,0.1906,2623.2,2623.1,2.0562]
[1748578111101,0.95287,2623.2,2623.1,0.7623]
[1748578111788,0.1906,2623.2,2623.1,0.7623]
[1748578111991,0.95287,2623.2,2623.1,0.7623]
[1748578112387,0.1906,2623.2,2623.1,0.7623]
[1748578113385,0.1906,2623.2,2623.1,1.9802]
[1748578119396,0.95287,2623.2,2623.1,0.7623]
[1748578119596,1.4383,2623.2,2623.1,0.7623]
[1748578119896,0.1906,2623.2,2623.1,0.7623]
[1748578120194,0.1906,2623.2,2623.1,1.9811]
[1748578120896,0.95287,2623.2,2623.1,1.9811]
[1748578121098,0.1906,2623.2,2623.1,1.9811]
[1748578121398,0.1906,2623.2,2623.1,5.8121]
[1748578124997,0.95287,2623.2,2623.1,3.831]
[1748578125199,2.1324,2623.2,2622.9,7.80115]
[1748578125389,2.1324,2623.2,2623.0,0.76233]
[1748578125594,2.0983,2623.1,2622.9,7.0388]
[1748578126101,1.336,2623.1,2622.9,7.80115]
[1748578126303,2.09832,2623.1,2622.9,7.80115]
[1748578127101,2.09832,2623.1,2622.9,7.0388]
[1748578127306,0.76233,2623.0,2622.9,7.0388]
[1748578128195,0.76233,2623.0,2622.9,3.831]
[1748578130597,1.83535403,2623.0,2622.9,3.831]
[1748578130799,0.76233,2623.0,2622.9,3.831]
[1748578131398,0.76233,2623.0,2622.9,4.4693]
[1748578133604,0.95293,2623.0,2622.9,4.4693]
[1748578135405,0.95293,2623.0,2622.9,0.6383]
[1748578135700,0.1906,2623.0,2622.9,1.40066]
[1748578136002,0.1906,2623.0,2622.9,2.68846]
[1748578137195,0.95293,2623.0,2622.9,2.68846]
[1748578137401,0.1906,2623.0,2622.9,2.68846]
[1748578142704,0.1906,2623.0,2622.9,7.68846]